[Event "NJSK 2026 Jeugd A"]
[Site "Helmond, Netherlands"]
[Date "2026.04.28"]
[Round "4.2"]
[White "Smeets, Kobe"]
[Black "Terlouw, Wouter"]
[Result "0-1"]
[TimeControl "90min/40moves + 30min + 30sec/move"]
[WhiteTitle "-"]
[BlackTitle "-"]
[WhiteFideId "1063910"]
[BlackFideId "1087401"]
[WhiteElo "2315"]
[BlackElo "2272"]

1. e4 {[%clk 01:30:59]} e5 {[%clk 01:29:05]} {[%emt 00:01:55]} 2. Nf3 {[%clk
01:31:22]} {[%emt 00:00:06]} Nc6 {[%clk 01:29:30]} {[%emt 00:00:05]} 3. Bb5
{[%clk 01:31:50]} {[%emt 00:00:03]} a6 {[%clk 01:29:52]} {[%emt 00:00:07]} 4.
Ba4 {[%clk 01:32:18]} {[%emt 00:00:02]} Nf6 {[%clk 01:30:10]} {[%emt 00:00:12]}
5. d3 {[%clk 01:32:26]} {[%emt 00:00:22]} d6 {[%clk 01:30:32]} {[%emt
00:00:07]} 6. c3 {[%clk 01:32:52]} {[%emt 00:00:05]} g6 {[%clk 01:30:56]}
{[%emt 00:00:06]} 7. h3 {[%clk 01:33:03]} {[%emt 00:00:18]} Bg7 {[%clk
01:31:21]} {[%emt 00:00:06]} 8. O-O {[%clk 01:33:07]} {[%emt 00:00:26]} O-O
{[%clk 01:30:57]} {[%emt 00:00:54]} 9. Re1 {[%clk 01:32:41]} {[%emt 00:00:57]}
h6 {[%clk 01:28:38]} {[%emt 00:02:48]} 10. Nbd2 {[%clk 01:32:53]} {[%emt
00:00:19]} Kh7 {[%clk 01:26:40]} {[%emt 00:02:28]} 11. Nf1 {[%clk 01:28:43]}
{[%emt 00:04:39]} b5 {[%clk 01:18:28]} {[%emt 00:08:42]} 12. Bc2 {[%clk
01:29:04]} {[%emt 00:00:09]} d5 {[%clk 01:18:21]} {[%emt 00:00:37]} 13. a4
{[%clk 01:27:10]} {[%emt 00:02:24]} Be6 {[%clk 01:14:27]} {[%emt 00:04:23]} 14.
N1d2 {[%clk 01:18:32]} {[%emt 00:09:08]} Nd7 {[%clk 00:51:37]} {[%emt
00:23:21]} 15. d4 {[%clk 00:48:06]} {[%emt 00:30:56]} exd4 {[%clk 00:40:10]}
{[%emt 00:11:57]} 16. cxd4 {[%clk 00:48:28]} {[%emt 00:00:09]} Nb4 {[%clk
00:39:00]} {[%emt 00:01:39]} 17. Bb1 {[%clk 00:46:35]} {[%emt 00:02:23]} c5
{[%clk 00:36:45]} {[%emt 00:02:45]} 18. e5 {[%clk 00:45:02]} {[%emt 00:02:03]}
cxd4 {[%clk 00:35:27]} {[%emt 00:01:48]} 19. Nb3 {[%clk 00:44:03]} {[%emt
00:01:30]} Nc6 {[%clk 00:33:52]} {[%emt 00:02:04]} 20. Bf4 {[%clk 00:42:50]}
{[%emt 00:01:43]} bxa4 {[%clk 00:29:36]} {[%emt 00:04:46]} 21. Nbxd4 {[%clk
00:40:41]} {[%emt 00:02:39]} Nxd4 {[%clk 00:29:57]} {[%emt 00:00:09]} 22. Nxd4
{[%clk 00:41:02]} {[%emt 00:00:09]} Nc5 {[%clk 00:29:21]} {[%emt 00:01:08]} 23.
Be3 {[%clk 00:25:29]} {[%emt 00:16:04]} Qd7 {[%clk 00:19:38]} {[%emt 00:10:13]}
24. f4 {[%clk 00:24:48]} {[%emt 00:01:10]} Nb3 {[%clk 00:17:37]} {[%emt
00:02:31]} 25. Ra3 {[%clk 00:16:45]} {[%emt 00:08:33]} Nxd4 {[%clk 00:17:27]}
{[%emt 00:00:40]} 26. Bxd4 {[%clk 00:17:07]} {[%emt 00:00:07]} Bf5 {[%clk
00:16:45]} {[%emt 00:01:13]} 27. Bxf5 {[%clk 00:12:03]} {[%emt 00:05:35]} Qxf5
{[%clk 00:17:05]} {[%emt 00:00:09]} 28. Rf3 {[%clk 00:12:21]} {[%emt 00:00:12]}
Rac8 {[%clk 00:15:16]} {[%emt 00:02:19]} 29. Rf2 {[%clk 00:12:45]} {[%emt
00:00:06]} Qh5 {[%clk 00:13:06]} {[%emt 00:02:40]} 30. Qd3 {[%clk 00:12:43]}
{[%emt 00:00:32]} Qf5 {[%clk 00:12:39]} {[%emt 00:00:57]} 31. Qd1 {[%clk
00:10:32]} {[%emt 00:02:41]} Qh5 {[%clk 00:12:53]} {[%emt 00:00:16]} 32. Rf3
{[%clk 00:00:45]} {[%emt 00:10:18]} Qf5 {[%clk 00:13:16]} {[%emt 00:00:06]} 33.
Re2 {[%clk 00:01:03]} {[%emt 00:00:12]} h5 {[%clk 00:11:10]} {[%emt 00:02:36]}
34. Kh2 {[%clk 00:01:20]} {[%emt 00:00:13]} Rc4 {[%clk 00:11:05]} {[%emt
00:00:35]} 35. Ree3 {[%clk 00:00:33]} {[%emt 00:01:17]} Bh6 {[%clk 00:10:45]}
{[%emt 00:00:50]} 36. g4 {[%clk 00:00:32]} {[%emt 00:00:31]} hxg4 {[%clk
00:10:58]} {[%emt 00:00:17]} 37. hxg4 {[%clk 00:00:50]} {[%emt 00:00:12]} Qxg4
{[%clk 00:11:22]} {[%emt 00:00:06]} 38. Kh1 {[%clk 00:00:45]} {[%emt 00:00:35]}
Rfc8 {[%clk 00:11:28]} {[%emt 00:00:24]} 39. Rc3 {[%clk 00:00:43]} {[%emt
00:00:32]} a3 {[%clk 00:11:21]} {[%emt 00:00:37]} 0-1

[Event "NJSK 2026 Jeugd A"]
[Site "Helmond, Netherlands"]
[Date "2026.04.28"]
[Round "4.3"]
[White "Dinanath, Hrdya"]
[Black "Zhu, Chenwu"]
[Result "1/2-1/2"]
[TimeControl "90min/40moves + 30min + 30sec/move"]
[WhiteTitle "-"]
[BlackTitle "-"]
[WhiteFideId "1087991"]
[BlackFideId "1080687"]
[WhiteElo "2107"]
[BlackElo "2282"]

1. e4 {[%clk 01:30:57]} {[%emt 00:00:04]} c5 {[%clk 01:30:56]} {[%emt
00:00:04]} 2. Nf3 {[%clk 01:31:24]} {[%emt 00:00:02]} Nc6 {[%clk 01:31:22]}
{[%emt 00:00:04]} 3. Bb5 {[%clk 01:31:49]} {[%emt 00:00:06]} Nf6 {[%clk
01:31:30]} {[%emt 00:00:21]} 4. Nc3 {[%clk 01:32:13]} {[%emt 00:00:07]} g6
{[%clk 01:31:42]} {[%emt 00:00:18]} 5. h3 {[%clk 01:31:18]} {[%emt 00:01:24]}
Qc7 {[%clk 01:31:03]} {[%emt 00:01:09]} 6. d4 {[%clk 01:20:53]} {[%emt
00:10:56]} cxd4 {[%clk 01:28:53]} {[%emt 00:02:40]} 7. Nxd4 {[%clk 01:21:17]}
{[%emt 00:00:06]} Bg7 {[%clk 01:19:11]} {[%emt 00:10:11]} 8. Be3 {[%clk
01:19:35]} {[%emt 00:02:12]} O-O {[%clk 01:16:52]} {[%emt 00:02:49]} 9. Qd2
{[%clk 01:13:32]} {[%emt 00:06:33]} Rd8 {[%clk 01:08:05]} {[%emt 00:09:18]} 10.
O-O-O {[%clk 00:48:14]} {[%emt 00:25:47]} d5 {[%clk 01:01:06]} {[%emt
00:07:29]} 11. Bxc6 {[%clk 00:44:24]} {[%emt 00:04:20]} bxc6 {[%clk 01:00:36]}
{[%emt 00:01:01]} 12. e5 {[%clk 00:43:33]} {[%emt 00:01:21]} Ne8 {[%clk
00:56:46]} {[%emt 00:04:19]} 13. f4 {[%clk 00:33:40]} {[%emt 00:10:23]} f6
{[%clk 00:49:09]} {[%emt 00:08:08]} 14. exf6 {[%clk 00:27:03]} {[%emt
00:07:06]} Bxf6 {[%clk 00:47:43]} {[%emt 00:01:56]} 15. Nb3 {[%clk 00:21:48]}
{[%emt 00:05:45]} Nd6 {[%clk 00:33:56]} {[%emt 00:14:20]} 16. Bd4 {[%clk
00:20:30]} {[%emt 00:01:48]} Nc4 {[%clk 00:33:37]} {[%emt 00:00:49]} 17. Qf2
{[%clk 00:20:06]} {[%emt 00:00:54]} Rf8 {[%clk 00:29:50]} {[%emt 00:04:16]} 18.
Bxf6 {[%clk 00:19:56]} {[%emt 00:00:40]} Rxf6 {[%clk 00:28:13]} {[%emt
00:02:07]} 19. g3 {[%clk 00:19:33]} {[%emt 00:00:53]} Qb6 {[%clk 00:24:49]}
{[%emt 00:03:53]} 20. Qc5 {[%clk 00:18:44]} {[%emt 00:01:20]} Rb8 {[%clk
00:15:09]} {[%emt 00:10:10]} 21. Na4 {[%clk 00:16:17]} {[%emt 00:02:57]} Qa6
{[%clk 00:13:47]} {[%emt 00:01:51]} 22. Nc3 {[%clk 00:13:31]} {[%emt 00:03:18]}
Qb6 {[%clk 00:12:47]} {[%emt 00:01:29]} 23. Na4 {[%clk 00:12:36]} {[%emt
00:01:26]} Qa6 {[%clk 00:12:07]} {[%emt 00:01:10]} 1/2-1/2

[Event "NJSK 2026 Jeugd A"]
[Site "Helmond, Netherlands"]
[Date "2026.04.28"]
[Round "4.4"]
[White "Kazarjan, Gachatur"]
[Black "Krylov, Philippe"]
[Result "1-0"]
[TimeControl "90min/40moves + 30min + 30sec/move"]
[WhiteTitle "-"]
[BlackTitle "-"]
[WhiteFideId "1068750"]
[BlackFideId "1082930"]
[WhiteElo "2272"]
[BlackElo "2183"]

1. e4 {[%clk 01:26:12]} {[%emt 00:04:43]} c5 {[%clk 01:30:54]} {[%emt
00:00:11]} 2. Nf3 {[%clk 01:26:37]} {[%emt 00:00:05]} d6 {[%clk 01:31:19]}
{[%emt 00:00:04]} 3. d4 {[%clk 01:26:57]} {[%emt 00:00:10]} cxd4 {[%clk
01:31:42]} {[%emt 00:00:07]} 4. Nxd4 {[%clk 01:27:23]} {[%emt 00:00:04]} Nf6
{[%clk 01:32:07]} {[%emt 00:00:06]} 5. Nc3 {[%clk 01:27:49]} {[%emt 00:00:04]}
Nc6 {[%clk 01:32:32]} {[%emt 00:00:05]} 6. Bg5 {[%clk 01:28:10]} {[%emt
00:00:09]} g6 {[%clk 01:32:56]} {[%emt 00:00:06]} 7. Be2 {[%clk 01:25:41]}
{[%emt 00:02:58]} Bg7 {[%clk 01:32:20]} {[%emt 00:01:07]} 8. Nb3 {[%clk
01:25:50]} {[%emt 00:00:20]} Be6 {[%clk 01:24:23]} {[%emt 00:08:27]} 9. O-O
{[%clk 01:26:13]} {[%emt 00:00:07]} h6 {[%clk 01:23:39]} {[%emt 00:01:15]} 10.
Bh4 {[%clk 01:14:41]} {[%emt 00:12:02]} g5 {[%clk 01:11:03]} {[%emt 00:13:06]}
11. Bg3 {[%clk 01:14:44]} {[%emt 00:00:27]} d5 {[%clk 01:09:44]} {[%emt
00:01:49]} 12. Nc5 {[%clk 01:09:17]} {[%emt 00:05:56]} O-O {[%clk 00:56:58]}
{[%emt 00:13:16]} 13. Nxe6 {[%clk 01:01:40]} {[%emt 00:08:07]} fxe6 {[%clk
00:57:21]} {[%emt 00:00:06]} 14. e5 {[%clk 00:58:38]} {[%emt 00:03:33]} Ne4
{[%clk 00:45:45]} {[%emt 00:12:06]} 15. Nxe4 {[%clk 00:56:41]} {[%emt
00:02:27]} dxe4 {[%clk 00:46:08]} {[%emt 00:00:06]} 16. Qe1 {[%clk 00:51:42]}
{[%emt 00:05:30]} Nxe5 {[%clk 00:41:41]} {[%emt 00:04:58]} 17. Qb4 {[%clk
00:50:16]} {[%emt 00:01:55]} Nc6 {[%clk 00:35:03]} {[%emt 00:07:08]} 18. Qxe4
{[%clk 00:49:39]} {[%emt 00:01:07]} Qd5 {[%clk 00:35:21]} {[%emt 00:00:12]} 19.
Qg4 {[%clk 00:49:10]} {[%emt 00:00:58]} Qf5 {[%clk 00:26:26]} {[%emt 00:09:26]}
20. Qc4 {[%clk 00:47:17]} {[%emt 00:02:22]} Nd4 {[%clk 00:24:16]} {[%emt
00:02:41]} 21. Bd3 {[%clk 00:47:03]} {[%emt 00:00:44]} Qd5 {[%clk 00:24:28]}
{[%emt 00:00:19]} 22. Qb4 {[%clk 00:47:17]} {[%emt 00:00:15]} Rac8 {[%clk
00:23:03]} {[%emt 00:01:56]} 23. Rad1 {[%clk 00:46:43]} {[%emt 00:01:04]} Qc6
{[%clk 00:12:04]} {[%emt 00:11:29]} 24. c3 {[%clk 00:43:31]} {[%emt 00:03:43]}
Nf5 {[%clk 00:12:30]} {[%emt 00:00:04]} 25. Rfe1 {[%clk 00:43:35]} {[%emt
00:00:25]} Kh8 {[%clk 00:09:15]} {[%emt 00:03:45]} 26. Qg4 {[%clk 00:31:37]}
{[%emt 00:12:29]} Qb6 {[%clk 00:08:17]} {[%emt 00:01:28]} 27. Re2 {[%clk
00:30:49]} {[%emt 00:01:18]} Rcd8 {[%clk 00:08:10]} {[%emt 00:00:38]} 28. Qe4
{[%clk 00:30:58]} {[%emt 00:00:21]} Rd5 {[%clk 00:06:03]} {[%emt 00:02:36]} 29.
Rde1 {[%clk 00:30:16]} {[%emt 00:01:12]} Rfd8 {[%clk 00:04:58]} {[%emt
00:01:35]} 30. Bc2 {[%clk 00:27:32]} {[%emt 00:03:14]} Bf6 {[%clk 00:04:23]}
{[%emt 00:01:05]} 31. Qg4 {[%clk 00:21:09]} {[%emt 00:06:52]} Qxb2 {[%clk
00:02:42]} {[%emt 00:02:12]} 32. Bb3 {[%clk 00:12:40]} {[%emt 00:08:58]} Rd2
{[%clk 00:02:03]} {[%emt 00:01:10]} 33. Rxe6 {[%clk 00:11:50]} {[%emt
00:01:19]} Nxg3 {[%clk 00:02:28]} {[%emt 00:00:06]} 34. hxg3 {[%clk 00:11:46]}
{[%emt 00:00:34]} R2d6 {[%clk 00:00:39]} {[%emt 00:02:19]} 35. Qh5 {[%clk
00:11:13]} {[%emt 00:01:02]} Bg7 {[%clk 00:01:05]} {[%emt 00:00:05]} 36. Rxd6
{[%clk 00:11:05]} {[%emt 00:00:38]} exd6 {[%clk 00:00:58]} {[%emt 00:00:37]} 37.
Re8+ {[%clk 00:11:22]} {[%emt 00:00:13]} Rxe8 {[%clk 00:01:22]} {[%emt
00:00:06]} 38. Qxe8+ {[%clk 00:11:48]} {[%emt 00:00:04]} Kh7 {[%clk 00:01:47]}
{[%emt 00:00:05]} 39. Bg8+ {[%clk 00:12:05]} {[%emt 00:00:12]} 1-0

[Event "NJSK 2026 Jeugd A"]
[Site "Helmond, Netherlands"]
[Date "2026.04.28"]
[Round "4.5"]
[White "Van Arendonk, Polle"]
[Black "Kshirsagar, Pranav"]
[Result "0-1"]
[TimeControl "90min/40moves + 30min + 30sec/move"]
[WhiteTitle "-"]
[BlackTitle "-"]
[WhiteFideId "1072048"]
[BlackFideId "1084011"]
[WhiteElo "2060"]
[BlackElo "2148"]

1. e4 {[%clk 01:30:57]} {[%emt 00:00:02]} c6 {[%clk 01:30:57]} {[%emt
00:00:05]} 2. d4 {[%clk 01:31:22]} {[%emt 00:00:04]} d5 {[%clk 01:31:23]}
{[%emt 00:00:03]} 3. e5 {[%clk 01:31:49]} {[%emt 00:00:03]} c5 {[%clk
01:31:42]} {[%emt 00:00:11]} 4. Nf3 {[%clk 01:32:15]} {[%emt 00:00:05]} cxd4
{[%clk 01:31:00]} {[%emt 00:01:12]} 5. Nxd4 {[%clk 01:32:38]} {[%emt 00:00:06]}
e6 {[%clk 01:26:10]} {[%emt 00:05:20]} 6. Nd2 {[%clk 01:32:58]} {[%emt
00:00:10]} Nc6 {[%clk 01:25:16]} {[%emt 00:01:25]} 7. N2f3 {[%clk 01:33:23]}
{[%emt 00:00:05]} a6 {[%clk 01:20:21]} {[%emt 00:05:25]} 8. Bd3 {[%clk
01:27:46]} {[%emt 00:06:06]} Qc7 {[%clk 01:13:50]} {[%emt 00:07:00]} 9. Nxc6
{[%clk 01:23:30]} {[%emt 00:04:46]} bxc6 {[%clk 01:13:12]} {[%emt 00:01:08]} 10.
O-O {[%clk 01:23:52]} {[%emt 00:00:08]} Ne7 {[%clk 01:09:54]} {[%emt 00:03:48]}
11. c3 {[%clk 01:21:36]} {[%emt 00:02:47]} Ng6 {[%clk 01:07:16]} {[%emt
00:03:08]} 12. Re1 {[%clk 01:21:43]} {[%emt 00:00:23]} Be7 {[%clk 01:07:07]}
{[%emt 00:00:38]} 13. h4 {[%clk 01:04:54]} {[%emt 00:17:20]} Bxh4 {[%clk
00:46:37]} {[%emt 00:20:59]} 14. Nxh4 {[%clk 01:04:44]} {[%emt 00:00:40]} Nxh4
{[%clk 00:47:00]} {[%emt 00:00:07]} 15. Be3 {[%clk 01:04:32]} {[%emt 00:00:41]}
Ng6 {[%clk 00:37:25]} {[%emt 00:10:05]} 16. Bxg6 {[%clk 01:02:29]} {[%emt
00:02:34]} hxg6 {[%clk 00:31:57]} {[%emt 00:05:58]} 17. Bc5 {[%clk 01:02:40]}
{[%emt 00:00:19]} Rh5 {[%clk 00:30:57]} {[%emt 00:01:30]} 18. Qd4 {[%clk
00:49:04]} {[%emt 00:14:05]} Qd8 {[%clk 00:26:56]} {[%emt 00:04:31]} 19. g3
{[%clk 00:43:25]} {[%emt 00:06:10]} f6 {[%clk 00:22:26]} {[%emt 00:05:02]} 20.
Kg2 {[%clk 00:29:08]} {[%emt 00:14:48]} Kf7 {[%clk 00:22:25]} {[%emt 00:00:29]}
21. f4 {[%clk 00:28:50]} {[%emt 00:00:49]} Qh8 {[%clk 00:19:37]} {[%emt
00:03:17]} 22. Rh1 {[%clk 00:28:56]} {[%emt 00:00:24]} Qh7 {[%clk 00:16:49]}
{[%emt 00:03:18]} 23. Ba3 {[%clk 00:22:26]} {[%emt 00:07:00]} g5 {[%clk
00:14:26]} {[%emt 00:02:54]} 24. Rxh5 {[%clk 00:19:08]} {[%emt 00:03:47]} Qxh5
{[%clk 00:14:28]} {[%emt 00:00:28]} 25. Re1 {[%clk 00:18:27]} {[%emt 00:01:12]}
Bd7 {[%clk 00:05:16]} {[%emt 00:09:42]} 26. Qc5 {[%clk 00:18:21]} {[%emt
00:00:37]} Rh8 {[%clk 00:05:28]} {[%emt 00:00:18]} 27. Qe7+ {[%clk 00:12:03]}
{[%emt 00:06:47]} Kg6 {[%clk 00:05:54]} {[%emt 00:00:04]} 28. f5+ {[%clk
00:10:16]} {[%emt 00:02:17]} exf5 {[%clk 00:03:09]} {[%emt 00:03:15]} 29. exf6
{[%clk 00:10:42]} {[%emt 00:00:04]} gxf6 {[%clk 00:02:36]} {[%emt 00:01:03]} 30.
Qxd7 {[%clk 00:08:25]} {[%emt 00:02:47]} Qh2+ {[%clk 00:02:56]} {[%emt
00:00:10]} 31. Kf3 {[%clk 00:07:28]} {[%emt 00:01:27]} g4+ {[%clk 00:02:49]}
{[%emt 00:00:37]} 32. Ke3 {[%clk 00:07:50]} {[%emt 00:00:08]} Qxg3+ {[%clk
00:03:12]} {[%emt 00:00:07]} 33. Kd2 {[%clk 00:08:05]} {[%emt 00:00:14]} Rh2+
{[%clk 00:03:02]} {[%emt 00:00:41]} 34. Re2 {[%clk 00:08:29]} {[%emt 00:00:07]}
Qf4+ {[%clk 00:03:17]} {[%emt 00:00:15]} 0-1

[Event "NJSK 2026 Jeugd A"]
[Site "Helmond, Netherlands"]
[Date "2026.04.28"]
[Round "4.6"]
[White "Madularea, David"]
[Black "Heus, Daan"]
[Result "1-0"]
[TimeControl "90min/40moves + 30min + 30sec/move"]
[WhiteTitle "-"]
[BlackTitle "-"]
[WhiteFideId "1070215"]
[BlackFideId "40103757"]
[WhiteElo "2261"]
[BlackElo "2049"]

1. e4 {[%clk 01:30:59]} e5 {[%clk 01:30:51]} {[%emt 00:00:10]} 2. Nf3 {[%clk
01:31:25]} {[%emt 00:00:03]} Nc6 {[%clk 01:31:13]} {[%emt 00:00:08]} 3. Nc3
{[%clk 01:31:49]} {[%emt 00:00:06]} Nf6 {[%clk 01:31:35]} {[%emt 00:00:08]} 4.
Nd5 {[%clk 01:32:13]} {[%emt 00:00:06]} Be7 {[%clk 01:29:53]} {[%emt 00:02:12]}
5. Bd3 {[%clk 01:32:11]} {[%emt 00:00:31]} d6 {[%clk 01:25:53]} {[%emt
00:04:31]} 6. c3 {[%clk 01:32:31]} {[%emt 00:00:10]} Be6 {[%clk 01:22:01]}
{[%emt 00:04:22]} 7. Nxe7 {[%clk 01:32:54]} {[%emt 00:00:07]} Qxe7 {[%clk
01:17:43]} {[%emt 00:04:49]} 8. O-O {[%clk 01:33:15]} {[%emt 00:00:08]} O-O
{[%clk 01:15:49]} {[%emt 00:02:23]} 9. Bc2 {[%clk 01:33:15]} {[%emt 00:00:30]}
Bg4 {[%clk 01:13:03]} {[%emt 00:03:16]} 10. Re1 {[%clk 01:26:14]} {[%emt
00:07:31]} Rfe8 {[%clk 01:07:16]} {[%emt 00:06:19]} 11. h3 {[%clk 01:25:34]}
{[%emt 00:01:09]} Bh5 {[%clk 01:07:26]} {[%emt 00:00:19]} 12. g4 {[%clk
01:18:05]} {[%emt 00:08:00]} Bg6 {[%clk 01:05:13]} {[%emt 00:02:43]} 13. d3
{[%clk 01:14:08]} {[%emt 00:04:27]} Qd7 {[%clk 01:01:47]} {[%emt 00:03:56]} 14.
Bg5 {[%clk 01:12:34]} {[%emt 00:02:03]} Nxg4 {[%clk 00:49:11]} {[%emt
00:13:06]} 15. hxg4 {[%clk 01:11:38]} {[%emt 00:01:26]} Qxg4+ {[%clk 00:49:35]}
{[%emt 00:00:06]} 16. Kh2 {[%clk 01:11:55]} {[%emt 00:00:13]} Bh5 {[%clk
00:47:13]} {[%emt 00:02:53]} 17. Re3 {[%clk 01:11:42]} {[%emt 00:00:42]} f5
{[%clk 00:38:47]} {[%emt 00:08:56]} 18. Qh1 {[%clk 01:05:33]} {[%emt 00:06:38]}
fxe4 {[%clk 00:32:36]} {[%emt 00:06:42]} 19. dxe4 {[%clk 00:59:07]} {[%emt
00:06:56]} Rf8 {[%emt 00:05:18]} 20. Rg1 {[%clk 00:54:54]} Qxf3 {[%clk
00:27:28]} {[%emt 00:05:34]} 21. Rxf3 {[%clk 00:55:18]} {[%emt 00:00:06]} Bxf3
{[%clk 00:27:51]} {[%emt 00:00:07]} 22. Rg2 {[%clk 00:52:55]} {[%emt 00:02:52]}
h6 {[%clk 00:19:10]} {[%emt 00:09:12]} 23. Bxh6 {[%clk 00:48:59]} {[%emt
00:04:28]} Rf6 {[%clk 00:17:40]} {[%emt 00:02:00]} 24. Bxg7 {[%clk 00:46:57]}
{[%emt 00:02:32]} Rg6 {[%clk 00:15:04]} {[%emt 00:03:05]} 25. Bb3+ {[%clk
00:47:20]} {[%emt 00:00:07]} 1-0

[Event "NJSK 2026 Jeugd A"]
[Site "Helmond, Netherlands"]
[Date "2026.04.28"]
[Round "4.7"]
[White "Xu, Alex Z"]
[Black "Arnold, Rhys"]
[Result "0-1"]
[TimeControl "90min/40moves + 30min + 30sec/move"]
[WhiteTitle "-"]
[BlackTitle "-"]
[WhiteFideId "40114775"]
[BlackFideId "1068849"]
[WhiteElo "1965"]
[BlackElo "2315"]

1. e4 {[%clk 01:28:11]} {[%emt 00:02:49]} c5 {[%clk 01:30:23]} {[%emt
00:00:36]} 2. Nf3 {[%clk 01:28:37]} {[%emt 00:00:04]} d6 {[%clk 01:30:49]}
{[%emt 00:00:04]} 3. d4 {[%clk 01:29:04]} {[%emt 00:00:04]} cxd4 {[%clk
01:31:14]} {[%emt 00:00:05]} 4. Nxd4 {[%clk 01:29:29]} {[%emt 00:00:05]} Nf6
{[%clk 01:31:38]} {[%emt 00:00:04]} 5. Nc3 {[%clk 01:29:55]} {[%emt 00:00:05]}
Nc6 {[%clk 01:32:05]} {[%emt 00:00:03]} 6. Bg5 {[%clk 01:30:07]} {[%emt
00:00:18]} e6 {[%clk 01:32:16]} {[%emt 00:00:20]} 7. Qd2 {[%clk 01:30:28]}
{[%emt 00:00:09]} a6 {[%clk 01:32:40]} {[%emt 00:00:06]} 8. Nxc6 {[%clk
01:30:44]} {[%emt 00:00:13]} bxc6 {[%clk 01:33:04]} {[%emt 00:00:05]} 9. O-O-O
{[%clk 01:31:09]} {[%emt 00:00:06]} Be7 {[%clk 01:28:01]} {[%emt 00:05:33]} 10.
Bxf6 {[%clk 01:31:15]} {[%emt 00:00:25]} gxf6 {[%clk 01:28:22]} {[%emt
00:00:08]} 11. Bc4 {[%clk 01:31:17]} {[%emt 00:00:28]} Qa5 {[%clk 01:22:28]}
{[%emt 00:06:25]} 12. Rhe1 {[%clk 01:18:22]} {[%emt 00:13:25]} Bb7 {[%clk
01:21:21]} {[%emt 00:01:37]} 13. Bb3 {[%clk 01:15:58]} {[%emt 00:02:54]} O-O-O
{[%clk 01:19:03]} {[%emt 00:02:48]} 14. Kb1 {[%clk 01:07:52]} {[%emt 00:08:36]}
Kb8 {[%clk 01:16:11]} {[%emt 00:03:22]} 15. Qe2 {[%clk 01:05:06]} {[%emt
00:03:16]} h5 {[%clk 01:08:35]} {[%emt 00:08:06]} 16. f4 {[%clk 00:52:24]}
{[%emt 00:13:11]} f5 {[%clk 00:59:35]} {[%emt 00:09:30]} 17. exf5 {[%clk
00:42:15]} {[%emt 00:10:39]} Qxf5 {[%clk 00:59:33]} {[%emt 00:00:33]} 18. Bc4
{[%clk 00:42:09]} {[%emt 00:00:35]} Qa5 {[%clk 00:57:36]} {[%emt 00:02:28]} 19.
f5 {[%clk 00:39:34]} {[%emt 00:03:05]} d5 {[%clk 00:56:39]} {[%emt 00:01:27]}
20. Bd3 {[%clk 00:33:56]} {[%emt 00:06:08]} Bc8 {[%clk 00:50:59]} {[%emt
00:06:09]} 21. fxe6 {[%clk 00:27:12]} {[%emt 00:07:15]} fxe6 {[%clk 00:51:08]}
{[%emt 00:00:20]} 22. Rf1 {[%clk 00:26:50]} {[%emt 00:00:52]} Bd6 {[%clk
00:50:35]} {[%emt 00:01:04]} 23. Bg6 {[%clk 00:20:38]} {[%emt 00:06:43]} h4
{[%clk 00:47:38]} {[%emt 00:03:28]} 24. Qd3 {[%clk 00:11:44]} {[%emt 00:09:25]}
Bxh2 {[%clk 00:41:31]} {[%emt 00:06:36]} 25. Ne2 {[%clk 00:11:18]} {[%emt
00:00:55]} Qb6 {[%clk 00:37:56]} {[%emt 00:04:06]} 26. Rf3 {[%clk 00:08:50]}
{[%emt 00:02:57]} Bd6 {[%clk 00:33:21]} {[%emt 00:05:05]} 27. Qd2 {[%clk
00:06:47]} {[%emt 00:02:33]} Ka8 {[%clk 00:32:38]} {[%emt 00:01:13]} 28. Rb3
{[%clk 00:06:31]} {[%emt 00:00:46]} Qc7 {[%clk 00:33:01]} {[%emt 00:00:07]} 29.
Qd4 {[%clk 00:04:44]} {[%emt 00:02:17]} c5 {[%clk 00:27:00]} {[%emt 00:06:32]}
30. Qa4 {[%clk 00:04:50]} {[%emt 00:00:24]} c4 {[%clk 00:26:50]} {[%emt
00:00:40]} 31. Rc3 {[%clk 00:04:18]} {[%emt 00:01:01]} Qb6 {[%clk 00:26:16]}
{[%emt 00:01:04]} 32. Be4 {[%clk 00:01:58]} {[%emt 00:02:50]} Bb7 {[%clk
00:24:15]} {[%emt 00:02:31]} 33. Nd4 {[%clk 00:01:16]} {[%emt 00:01:13]} Bc5
{[%clk 00:24:28]} {[%emt 00:00:16]} 34. Nxe6 {[%clk 00:00:43]} {[%emt
00:01:03]} Qxe6 {[%clk 00:24:35]} {[%emt 00:00:23]} 35. Bf3 {[%clk 00:01:05]}
{[%emt 00:00:09]} Qb6 {[%clk 00:24:41]} {[%emt 00:00:23]} 0-1